bitfinex/quotes_ETHUSD_20250916
["timestamp","ask_amount","ask_price","bid_price","bid_amount"]
[1758055259541,0.002,4499.9,4499.8,2.0487]
[1758055259706,3.722,4499.9,4499.8,2.0487]
[1758055260611,0.002,4499.9,4499.8,7.07734948]
[1758055261017,0.002,4499.9,4499.8,2.0487]
[1758055266155,0.002,4499.9,4499.8,2.0709232]
[1758055267260,0.002,4499.9,4499.8,0.793]
[1758055267261,0.2908,4499.9,4499.8,0.793]
[1758055267461,3.4614716,4499.9,4499.8,0.793]
[1758055267967,3.0036716,4499.9,4499.8,0.793]
[1758055268258,2.5130716,4499.9,4499.8,0.793]
[1758055268855,3.58626576,4499.9,4499.8,0.001]
[1758055269055,7.51225747,4499.9,4499.8,0.001]
[1758055270033,8.19970469,4499.9,4499.8,0.001]
[1758055275537,7.99165327,4499.9,4499.8,0.001]
[1758055278401,8.19966082,4499.9,4499.8,0.001]
[1758055282306,6.96233238,4499.9,4499.8,0.001]
[1758055282473,6.96233238,4499.9,4499.8,0.3173]
[1758055282874,6.96233238,4499.9,4499.8,0.001]
[1758055284209,7.25113238,4499.9,4499.8,0.001]
[1758055285411,17.19857001,4499.9,4499.8,0.001]
[1758055288011,17.31467866,4499.9,4499.8,0.001]
[1758055289873,11.16083238,4499.9,4499.8,0.001]
[1758055291415,11.16055114,4499.9,4499.8,0.001]
[1758055294208,17.19828877,4499.9,4499.8,0.001]
[1758055301453,17.19853793,4499.9,4499.8,0.001]
[1758055304723,17.19880241,4499.9,4499.8,0.001]
[1758055305523,17.19888813,4499.9,4499.8,0.001]
[1758055306571,16.28918813,4499.9,4499.8,0.001]
[1758055307099,15.95620008,4499.9,4499.8,0.001]
[1758055307298,16.28923168,4499.9,4499.8,0.001]
[1758055307452,16.74903168,4499.9,4499.8,0.001]
[1758055307767,17.19893168,4499.9,4499.8,0.001]
[1758055310096,17.19898743,4499.9,4499.8,0.001]
[1758055311288,16.74908743,4499.9,4499.8,0.001]
[1758055312653,16.74970181,4499.9,4499.8,0.001]
[1758055312852,16.28990181,4499.9,4499.8,0.001]
[1758055313086,16.00110181,4499.9,4499.8,0.001]
[1758055313592,16.30850181,4499.9,4499.8,0.001]
[1758055314184,16.30050181,4499.9,4499.8,0.001]
[1758055315007,16.30069157,4499.9,4499.8,0.001]
[1758055315298,9.95555394,4499.9,4499.8,0.293]
[1758055315453,9.95555394,4499.9,4499.8,0.7668]
[1758055315656,9.95555394,4499.9,4499.8,1.2045]
[1758055317978,9.95555394,4499.9,4499.8,0.7668]
[1758055319049,10.26795394,4499.9,4499.8,0.001]
[1758055322764,10.72375394,4499.9,4499.8,0.001]
[1758055323865,9.95555394,4499.9,4499.8,0.001]
[1758055324159,9.95555394,4499.9,4499.8,0.293]
[1758055325133,9.95555394,4499.9,4499.8,0.001]
[1758055325732,14.99029238,4499.9,4499.8,0.001]
[1758055326164,14.99073768,4499.9,4499.8,0.001]
[1758055328668,14.99073768,4499.9,4499.3,1e-08]
[1758055328669,2.22251855,4499.4,4499.3,1e-08]
[1758055328864,11.98798463,4499.4,4499.3,1e-08]
[1758055329036,14.00838463,4499.4,4499.3,1e-08]
[1758055329236,14.93178463,4499.4,4499.3,1e-08]
[1758055330071,17.93178463,4499.4,4499.3,1e-08]
[1758055333081,17.93167169,4499.4,4499.3,1e-08]
[1758055335481,17.9317349,4499.4,4499.3,1e-08]
[1758055341195,17.93137228,4499.4,4499.3,1e-08]
[1758055342056,17.00797228,4499.4,4499.3,1e-08]
[1758055342322,17.00597228,4499.4,4499.3,1e-08]
[1758055342802,17.46177228,4499.4,4499.3,1e-08]
[1758055342999,2.22266675,4499.1,4498.9,0.001]
[1758055343169,6.58130322,4499.0,4498.9,0.001]
[1758055343503,10.06163026,4499.0,4498.9,0.001]
[1758055343653,10.06163026,4499.0,4498.9,0.293]
[1758055344192,10.49933026,4499.0,4498.9,0.293]
[1758055344395,10.49933026,4499.0,4498.9,0.001]
[1758055344755,10.49933026,4499.0,4498.9,0.2976]
[1758055345489,10.49933026,4499.0,4498.9,0.7515]
[1758055345785,10.49924019,4499.0,4498.9,0.7515]
[1758055346187,10.49924019,4499.0,4498.9,0.2976]
[1758055353257,10.49914917,4499.0,4498.9,0.2976]
[1758055355194,10.49914917,4499.0,4498.9,0.001]
[1758055355399,11.27934917,4499.0,4498.9,0.001]
[1758055356300,11.75264917,4499.0,4498.9,0.001]
[1758055356666,11.27934917,4499.0,4498.9,0.001]
[1758055357186,10.80724917,4499.0,4498.9,0.001]
[1758055358089,10.49914917,4499.0,4498.9,0.7515]
[1758055358285,10.49914917,4499.0,4498.9,1.2128]
[1758055358692,10.49914917,4499.0,4498.9,0.7515]
[1758055358693,10.49947031,4499.0,4498.9,0.7515]
[1758055359202,6.79247031,4499.0,4498.9,1.2128]
[1758055359404,9.95137031,4499.0,4498.9,1.2128]
[1758055360873,9.95195945,4499.0,4498.9,1.2128]
[1758055362399,9.95395945,4499.0,4498.9,1.2128]
[1758055362925,6.95395945,4499.0,4498.9,2.0048]
[1758055363720,6.95395945,4499.0,4498.9,1.0896]
[1758055364038,6.95395945,4499.0,4498.9,2.0048]
[1758055365098,6.95384841,4499.0,4498.9,2.0048]
[1758055365915,6.95376612,4499.0,4498.9,2.0048]
[1758055367293,6.95376612,4499.0,4498.9,1.5435]
[1758055367740,6.95376612,4499.0,4498.9,1.0896]
[1758055369247,6.95356999,4499.0,4498.9,1.0896]
[1758055369457,6.95347008,4499.0,4498.9,1.0896]
[1758055371925,6.74523688,4499.0,4498.9,1.0896]
[1758055372132,6.62026157,4499.0,4498.9,1.5435]
[1758055372310,6.62025131,4499.0,4498.9,1.5435]
[1758055372522,6.53696792,4499.0,4498.9,1.5435]
[1758055372721,6.74517581,4499.0,4498.9,1.5435]
[1758055372897,6.41204319,4499.0,4498.9,1.5435]
[1758055373325,6.74517578,4499.0,4498.9,1.0896]
[1758055376421,6.95337085,4499.0,4498.9,1.0896]
[1758055376745,6.74517578,4499.0,4498.9,1.0896]
[1758055383235,3.24640915,4499.0,4498.9,2.0061]
[1758055383551,6.26384874,4499.0,4498.9,2.0061]
[1758055384058,6.74417578,4499.0,4498.9,2.0061]
[1758055384855,7.50777578,4499.0,4498.9,0.793]
[1758055385245,6.74417578,4499.0,4498.9,1.1006]
[1758055387628,0.33513259,4499.0,4498.9,2.03932765]
[1758055387934,3.708,4499.0,4498.9,2.03932765]
[1758055388134,3.91464142,4499.0,4498.9,2.03932765]
[1758055388340,3.70643355,4499.0,4498.9,2.03932765]
[1758055388649,3.70643355,4499.0,4498.9,2.0171]
[1758055391968,3.70643355,4499.0,4498.9,4.23986556]
[1758055392268,3.70643355,4499.0,4498.9,2.0171]
[1758055393169,3.70643355,4499.0,4498.9,4.23986556]
[1758055393677,0.00043355,4499.0,4498.9,2.0171]
[1758055394201,0.00043355,4499.0,4498.9,4.23986556]
[1758055394347,0.00043355,4499.0,4498.9,4.35026556]
[1758055394551,0.00043355,4499.0,4498.9,5.01796865]
[1758055399974,0.00043355,4499.0,4498.9,2.79520309]
[1758055400382,0.00043355,4499.0,4498.9,5.01796865]
[1758055401667,0.00043355,4499.0,4498.9,12.22796865]
[1758055405513,0.00043355,4499.0,4498.9,13.22796865]
[1758055406981,0.00043355,4499.0,4498.9,16.93296865]
[1758055407927,0.29303355,4499.0,4498.9,15.70886865]
[1758055408223,0.00043355,4499.0,4498.9,15.99506865]
[1758055411997,0.00043355,4499.0,4498.9,11.78506865]
[1758055413116,0.29303355,4499.0,4498.9,6.27610309]
[1758055413315,1.21103355,4499.0,4498.9,5.6084]
[1758055413719,1.21103355,4499.0,4498.9,4.12616556]
[1758055413884,0.75513355,4499.0,4498.9,7.83116556]
[1758055414616,0.75513355,4499.0,4498.9,1.9034]
[1758055414820,0.75513355,4499.0,4498.9,5.6084]
[1758055416311,1.21103355,4499.0,4498.9,1.9034]
[1758055417023,1.21103355,4499.0,4498.9,1.1114]
[1758055417024,3.4337497,4499.0,4498.9,1.1114]
[1758055417224,1.21103355,4499.0,4498.9,1.1114]
[1758055417520,1.21103355,4499.0,4498.9,1.9034]
[1758055417721,0.29303355,4499.0,4498.9,1.9034]
[1758055417890,0.75513355,4499.0,4498.9,1.9034]
[1758055418796,1.21103355,4499.0,4498.9,1.9034]
[1758055419124,0.00043355,4499.0,4498.9,4.41236556]
[1758055419625,0.00043355,4499.0,4498.9,4.12616556]
[1758055421603,0.00043355,4499.0,4498.9,4.41236556]
[1758055422204,0.00043355,4499.0,4498.9,4.43459321]
[1758055422929,0.00043355,4499.0,4498.9,5.36729321]
[1758055423224,0.00043355,4499.0,4498.9,5.34506556]
[1758055423417,0.00043355,4499.0,4498.9,8.34506556]
[1758055423618,0.00043355,4499.0,4498.9,8.43409442]
[1758055424522,0.00043355,4499.0,4498.9,7.95899442]
[1758055425119,0.00043355,4499.0,4498.9,7.50139442]
[1758055427322,0.00043355,4499.0,4498.9,7.95899442]
[1758055427700,0.00043355,4499.0,4498.9,8.43409442]
[1758055427898,0.00043355,4499.0,4498.9,7.50139442]
[1758055429207,0.00043355,4499.0,4498.9,8.43409442]
[1758055429602,0.00043355,4499.0,4498.9,7.95899442]
[1758055430022,0.00043355,4499.0,4498.9,7.50139442]
[1758055431906,0.29303355,4499.0,4498.9,7.21519442]
[1758055432122,0.29303355,4499.0,4498.9,10.91919442]
[1758055432412,1.21103355,4499.0,4498.9,10.91919442]
[1758055432911,1.21103355,4499.0,4498.9,8.69642886]
[1758055433141,1.21103355,4499.0,4498.9,10.91919442]
[1758055435241,0.75103355,4499.0,4498.9,1.9034]
[1758055435553,1.21393355,4499.0,4498.9,1.9034]
[1758055437202,0.75103355,4499.0,4498.9,1.9034]
[1758055437403,1.21393355,4499.0,4498.9,1.9034]
[1758055438784,1.42214437,4499.0,4498.9,1.9034]
[1758055439223,1.21393355,4499.0,4498.9,1.9034]
[1758055439546,1.42214437,4499.0,4498.9,1.9034]
[1758055439922,1.21393355,4499.0,4498.9,1.9034]
[1758055440104,1.42214437,4499.0,4498.9,1.9034]
[1758055440439,1.21393355,4499.0,4498.9,1.9034]
[1758055440627,1.42214437,4499.0,4498.9,1.9034]
[1758055441233,1.21393355,4499.0,4498.9,1.9034]
[1758055441542,1.42214437,4499.0,4498.9,1.9034]
[1758055441944,1.21393355,4499.0,4498.9,1.9034]
[1758055442111,1.42214437,4499.0,4498.9,1.9034]
[1758055442310,1.21393355,4499.0,4498.9,1.9034]
[1758055442845,0.75103355,4499.0,4498.9,1.9034]
[1758055443139,0.00043355,4499.0,4498.9,4.43566556]
[1758055443345,0.00043355,4499.0,4498.9,3.1471]
[1758055443521,0.00043355,4499.0,4498.9,2.2129]
[1758055443721,0.00043355,4499.0,4498.9,1.9034]
[1758055444323,0.00043355,4499.0,4498.9,2.2129]
[1758055445544,0.29933355,4499.0,4498.9,1.9034]
[1758055445853,1.22023355,4499.0,4498.9,1.9034]
[1758055446147,0.75733355,4499.0,4498.9,1.9034]
[1758055446345,0.29933355,4499.0,4498.9,1.9034]
[1758055446845,1.4284003,4499.0,4498.9,0.9034]
[1758055447347,1.22023355,4499.0,4498.9,0.9034]
[1758055449251,1.4283984,4499.0,4498.9,0.9034]
[1758055449465,1.22023355,4499.0,4498.9,0.9034]
[1758055449664,1.4283984,4499.0,4498.9,0.793]
[1758055450576,0.00043355,4499.0,4498.9,0.793]
[1758055451050,0.00043355,4499.0,4498.9,1.1025]
[1758055451253,0.00043355,4499.0,4498.9,1.2129]
[1758055452155,0.00043355,4499.0,4498.9,0.9034]
[1758055452322,0.29933355,4499.0,4498.9,0.9034]
[1758055453625,5.5414792,4499.3,4499.0,0.792]
[1758055453880,5.5414792,4499.3,4499.1,0.02222666]
[1758055454173,0.2989,4499.2,4499.1,0.02222666]
[1758055454373,0.7618,4499.2,4499.1,0.02222666]
[1758055454552,0.2989,4499.2,4499.1,0.02222666]
[1758055455681,4.4609,4499.2,4499.1,0.02222666]
[1758055455882,4.4609,4499.2,4499.0,0.792]
[1758055456176,3.14356675,4499.1,4499.0,0.792]
[1758055456381,1.04580906,4499.1,4499.0,0.792]
[1758055456681,0.88180906,4499.1,4499.0,0.792]
[1758055457059,5.04870906,4499.1,4499.0,0.792]
[1758055457383,4.9238,4499.1,4499.0,0.792]
[1758055458446,4.0029,4499.1,4499.0,0.792]
[1758055458646,4.9238,4499.1,4499.0,0.792]
[1758055460183,5.04876509,4499.1,4499.0,0.792]
[1758055460680,7.27143184,4499.1,4499.0,0.792]
[1758055461071,5.04876509,4499.1,4499.0,0.792]
[1758055463802,5.04876509,4499.1,4499.0,0.793]
[1758055463998,4.58586509,4499.1,4499.0,0.793]
[1758055464297,3.82896509,4499.1,4499.0,0.793]
[1758055465580,3.82896509,4499.1,4499.0,1.0998]
[1758055465788,4.037452,4499.1,4499.0,1.0998]
[1758055466108,4.037452,4499.1,4499.0,2.0055]
[1758055467871,4.037452,4499.1,4499.0,1.12202716]
[1758055468078,4.037452,4499.1,4499.0,2.02772716]
[1758055468370,0.002,4499.3,4499.2,3.01461735]
[1758055468682,0.21046663,4499.3,4499.2,9.2605152]
[1758055469281,0.002,4499.3,4499.2,9.2605152]
[1758055473228,0.002,4499.3,4499.2,8.13704287]
[1758055473518,0.002,4499.3,4499.2,8.44384287]
[1758055473688,0.002,4499.3,4499.2,8.90534287]
[1758055473889,0.002,4499.3,4499.2,6.68272552]
[1758055474096,0.002,4499.3,4499.2,0.792]
[1758055476639,0.7724,4499.3,4499.2,0.792]
[1758055476835,1.2345,4499.3,4499.2,0.792]
[1758055477139,0.7724,4499.3,4499.2,0.792]
[1758055477820,0.2936,4499.3,4499.2,0.792]
[1758055478544,0.002,4499.3,4499.2,1.5603]
[1758055479805,0.7724,4499.3,4499.2,0.792]
[1758055480001,4.2345,4499.3,4499.2,0.792]
[1758055480339,1.2345,4499.3,4499.2,0.792]
[1758055480508,8.14573803,4499.3,4499.2,0.792]
[1758055480708,8.27068042,4499.3,4499.2,0.792]
[1758055482949,10.49324837,4499.3,4499.2,0.792]
[1758055483312,9.49324837,4499.3,4499.2,0.792]
[1758055483645,9.78484837,4499.3,4499.2,0.792]
[1758055484357,7.32778889,4499.3,4499.2,0.792]
[1758055484738,9.55235684,4499.3,4499.2,0.792]
[1758055485329,10.03115684,4499.3,4499.2,0.792]
[1758055485966,7.80858889,4499.3,4499.2,0.792]
[1758055486841,7.03115684,4499.3,4499.2,0.792]
[1758055487365,4.80858889,4499.3,4499.2,0.792]
[1758055487766,4.32978889,4499.3,4499.2,0.792]
[1758055489327,4.03818889,4499.3,4499.2,0.792]
[1758055489531,3.705,4499.3,4499.2,1.5603]
[1758055489774,3.705,4499.3,4499.2,2.0045]
[1758055489936,3.705,4499.3,4499.2,2.1149]
[1758055490649,0.002,4499.3,4499.2,2.1149]
[1758055490978,3.705,4499.3,4499.2,2.1149]
[1758055496273,3.705,4499.3,4499.2,1.6707]
[1758055498657,3.705,4499.3,4499.2,2.1307]
[1758055499665,3.705,4499.3,4499.2,1.2092]
[1758055500065,3.705,4499.3,4499.2,1.6786]
[1758055501269,4.0098,4499.3,4499.2,0.9024]
[1758055501605,7.43470034,4499.3,4499.2,0.1104]
[1758055502806,2.22261735,4499.2,4499.1,0.001]
[1758055503005,2.55594974,4499.2,4499.1,0.001]
[1758055503317,0.63813239,4499.2,4499.1,0.001]
[1758055503518,1.50713973,4499.2,4499.1,0.001]
[1758055504980,3.72975708,4499.2,4499.1,0.001]
[1758055505202,1.50713973,4499.2,4499.1,0.001]
[1758055505913,1.11933973,4499.2,4499.1,0.001]
[1758055506211,0.002,4499.3,4499.2,0.792]
[1758055506410,0.002,4499.3,4499.2,2.04732617]
[1758055506646,3.704,4499.3,4499.2,2.04732617]
[1758055507014,0.002,4499.3,4499.2,4.26994352]
[1758055507803,0.002,4499.3,4499.2,2.04732617]
[1758055508008,0.002,4499.3,4499.2,2.0251]
[1758055509128,0.002,4499.3,4499.2,4.24771735]
[1758055509914,0.002,4499.3,4499.2,4.26994352]
[1758055510614,0.002,4499.3,4499.2,4.24771735]
[1758055510946,0.002,4499.3,4499.2,4.33673432]
[1758055514563,0.002,4499.3,4499.2,7.10833432]
[1758055514755,0.002,4499.3,4499.2,8.03773432]
[1758055520369,0.002,4499.3,4499.2,8.14813432]
[1758055521037,0.002,4499.3,4499.2,11.03773432]
[1758055525972,0.002,4499.3,4499.2,10.57773432]
[1758055526169,0.002,4499.3,4499.2,10.25523432]
[1758055526592,0.002,4499.3,4499.2,11.04723432]
[1758055529719,0.24,4500.8,4500.7,3.01387659]
[1758055529879,0.24,4500.8,4500.7,7.01027659]
[1758055530081,0.24,4500.8,4500.7,7.48717659]
[1758055530392,0.4588,4501.3,4500.8,3.01382723]
[1758055530807,0.4588,4501.3,4500.8,3.31022723]
[1758055530994,0.4588,4501.3,4500.8,3.42062723]
[1758055531310,0.4588,4501.3,4500.8,3.89752723]
[1758055532234,2.23128831,4501.9,4500.8,3.12422723]
[1758055532403,0.4588,4501.3,4500.8,3.12422723]
[1758055533126,0.25,4500.9,4500.8,3.12422723]
[1758055533290,1.1608,4500.9,4500.8,3.12422723]
[1758055533921,0.7088,4500.9,4500.8,6.82422723]
[1758055534226,1.1608,4500.9,4500.8,6.82422723]
[1758055534428,0.25,4500.9,4500.8,0.1104]
[1758055534729,1.1608,4500.9,4500.6,0.792]
[1758055534901,1.1608,4500.9,4500.6,3.7]
[1758055534902,0.25,4500.9,4500.6,3.7]
[1758055535101,0.9108,4500.8,4500.6,5.92192576]
[1758055535296,0.01,4500.9,4500.7,0.792]
[1758055535504,0.01,4500.9,4500.7,3.01387242]
[1758055535823,0.3113,4500.8,4500.7,3.01387242]
[1758055536024,1.1516,4500.8,4500.7,3.01387242]
[1758055536324,0.3113,4500.8,4500.7,3.01387242]
[1758055536826,1.1516,4500.8,4500.7,3.01387242]
[1758055537031,0.3113,4500.8,4500.7,3.01387242]
[1758055537232,0.01,4500.9,4500.8,2.22182723]
[1758055537831,0.3213,4500.9,4500.8,2.22182723]
[1758055538020,0.3213,4500.9,4500.2,1.708]
[1758055538021,1.1616,4500.9,4500.2,1.708]
[1758055538221,0.4588,4500.8,4500.7,0.792]
[1758055538398,0.7028,4500.9,4500.8,0.792]
[1758055538600,0.4688,4500.9,4500.7,0.792]
[1758055538929,0.24,4500.8,4500.7,3.01387659]
[1758055539129,0.4688,4500.9,4500.8,3.01382723]
[1758055539130,0.01,4500.9,4500.8,3.01382723]
[1758055539517,0.01,4500.9,4500.8,7.5093455]
[1758055539720,0.01,4500.9,4500.8,7.95662723]
[1758055541499,0.01,4500.9,4500.8,7.01022723]
[1758055542205,0.01,4500.9,4500.8,6.71382723]
[1758055542738,0.01,4500.9,4500.8,7.95662723]
[1758055543103,0.01,4500.9,4500.8,7.16462723]
[1758055543637,0.01,4500.9,4500.8,7.48712723]
[1758055543821,0.01,4500.9,4500.8,7.01022723]
[1758055544416,0.01,4500.9,4500.8,7.95662723]
[1758055544617,0.01,4500.9,4500.8,8.06702723]
[1758055544817,0.01,4500.9,4500.8,7.12062723]
[1758055545631,0.01,4500.9,4500.8,14.1060232]
[1758055546231,0.01,4500.9,4500.8,3.42062723]
[1758055546430,0.01,4500.9,4500.8,8.06602723]
[1758055546648,0.01,4500.9,4500.8,7.27402723]
[1758055546821,0.01,4500.9,4500.8,8.06602723]
[1758055548562,1e-08,4500.9,4500.8,11.06602723]
[1758055549958,1e-08,4500.9,4500.8,17.1050232]
[1758055551366,1e-08,4500.9,4500.8,17.10345438]
[1758055556392,1e-08,4500.9,4500.8,14.10345438]
[1758055557201,1e-08,4500.9,4500.8,21.31345438]
[1758055558263,0.002,4501.3,4501.2,12.05262575]
[1758055558468,0.002,4501.3,4501.2,17.56902575]
[1758055558700,0.002,4501.3,4501.2,18.79562575]
[1758055558990,0.002,4501.8,4501.7,12.052379]
[1758055559216,0.002,4501.8,4501.7,15.751379]
[1758055559402,0.002,4501.8,4501.7,17.545579]
[1758055559804,0.002,4501.8,4501.7,11.06488303]
[1758055560314,0.002,4501.8,4501.7,10.59368303]
[1758055560520,0.002,4501.8,4501.7,10.28098303]
[1758055560889,0.002,4501.8,4501.7,10.59368303]
[1758055561089,0.002,4501.8,4501.7,11.50758303]
[1758055561886,0.002,4501.8,4501.7,11.06588303]
[1758055562884,0.2538,4501.8,4501.7,6.58098303]
[1758055563100,0.2538,4501.8,4501.7,10.27998303]
[1758055563383,1.1514,4501.8,4501.7,6.58098303]
[1758055563614,0.2538,4501.8,4501.7,7.28098303]
[1758055564827,0.2538,4501.8,4501.7,3.58098303]
[1758055564981,1.1514,4501.8,4501.7,6.03178303]
[1758055565186,1.1514,4501.8,4501.7,6.82378303]
[1758055570555,1.1514,4501.8,4501.7,6.82278303]
[1758055573610,1.1514,4501.8,4501.7,0.1104]
[1758055573810,1.1514,4501.8,4499.1,2.80437067]
[1758055573811,1.1514,4501.8,4499.8,0.001]
[1758055574024,10.21202426,4501.8,4500.0,3.224]
[1758055574211,5.02706031,4501.1,4500.2,2.22212215]
[1758055574419,5.02706031,4501.1,4500.4,0.792]
[1758055574637,0.2537,4500.5,4499.8,0.001]
[1758055575024,0.8957,4500.4,4499.8,0.001]
[1758055575224,0.8957,4500.4,4499.8,2.2233196]
[1758055575447,0.2555,4499.9,4499.8,2.22332099]
[1758055575641,0.7127,4499.9,4499.8,2.22332099]
[1758055575842,0.7127,4499.9,4499.8,3.01532099]
[1758055576444,1.1494,4499.9,4499.8,0.793]
[1758055577153,1.1494,4499.9,4499.8,3.01532099]
[1758055578350,0.7127,4499.9,4499.8,3.01532099]
[1758055578726,0.7127,4499.9,4499.8,0.793]
[1758055578933,1.1494,4499.9,4499.8,0.793]
[1758055579753,5.26706031,4500.8,4499.8,1.1057]
[1758055579754,0.24,4500.8,4499.8,1.1057]
[1758055579950,0.24,4500.8,4500.7,3.01387659]
[1758055580116,0.24,4500.8,4500.7,7.03457659]
[1758055580313,0.4572,4501.5,4500.9,2.22175414]
[1758055580538,0.4572,4501.3,4501.0,2.2217285]
[1758055581052,0.01,4501.2,4501.1,0.792]
[1758055581222,0.01,4501.2,4501.1,3.03589593]
[1758055581422,0.2618,4501.2,4501.1,3.03589593]
[1758055581630,0.01,4501.2,4501.1,3.03589593]
[1758055581852,0.01,4501.6,4501.4,0.792]
[1758055582054,0.01,4501.6,4501.5,0.02221481]
[1758055582759,0.7026,4501.6,4501.5,0.02221481]
[1758055582949,1.1598,4501.6,4501.4,0.02221531]
[1758055583148,0.8529,4501.5,4501.4,0.02221531]
[1758055583754,1.1498,4501.5,4501.4,0.1104]
[1758055584971,3.37128172,4501.5,4501.4,0.1104]
[1758055585641,1.1498,4501.5,4501.4,0.1104]
[1758055586438,3.37128172,4501.5,4501.4,0.1104]
[1758055586775,6.17686031,4501.5,4501.2,0.1104]
[1758055586940,3.707,4501.4,4501.2,0.1104]
[1758055587137,5.92857243,4501.4,4501.2,0.1104]
[1758055587374,1.1631,4501.3,4501.2,0.1104]
[1758055587952,3.38468043,4501.3,4500.2,2.2221054]
[1758055588162,5.89226031,4501.2,4500.9,0.1104]
[1758055588559,0.2989,4501.0,4500.9,0.1104]
[1758055588975,1.1632,4501.0,4500.9,0.1104]
[1758055589279,0.2989,4501.0,4500.9,0.1104]
[1758055589483,4.0049,4501.0,4500.9,0.1104]
[1758055590253,4.0049,4501.0,4500.9,2.33217786]
[1758055590691,0.2989,4501.0,4500.9,3.12417786]
[1758055590853,3.706,4501.0,4500.9,3.14639563]
[1758055591194,3.706,4501.1,4501.0,0.792]
[1758055591755,3.9349,4501.1,4501.0,0.792]
[1758055593461,3.9349,4501.1,4500.9,0.13261777]
[1758055593989,3.9349,4501.1,4501.0,0.792]
[1758055595107,3.9349,4501.1,4500.9,0.13261777]
[1758055595306,3.9349,4501.1,4501.0,0.792]
[1758055595677,3.706,4501.1,4501.0,0.792]
[1758055595882,3.9349,4501.1,4501.0,0.792]
[1758055596611,4.8685,4501.1,4501.0,0.792]
[1758055597704,3.706,4501.1,4501.0,0.792]
[1758055597904,4.0197,4501.1,4501.0,0.792]
[1758055598480,4.0177,4501.1,4501.0,0.792]
[1758055598683,3.704,4501.1,4501.0,0.792]
[1758055601495,3.704,4501.1,4501.0,2.0307]
[1758055601669,3.704,4501.1,4501.0,1.5908]
[1758055601869,3.704,4501.1,4501.0,0.792]
[1758055602269,3.9329,4501.1,4501.0,0.792]
[1758055603109,4.4034,4501.1,4501.0,0.792]
[1758055603495,3.703,4501.2,4501.0,3.3150285]
[1758055603806,3.703,4501.2,4501.1,0.02221679]
[1758055604012,3.703,4501.2,4501.1,0.13261679]
[1758055604212,3.703,4501.2,4501.1,0.43391679]
[1758055604428,3.703,4501.2,4501.1,2.65559593]
[1758055604638,3.703,4501.2,4501.1,0.93141679]
[1758055604817,3.703,4501.2,4501.1,3.15309593]
[1758055605016,3.703,4501.2,4501.1,0.93141679]
[1758055605197,3.703,4501.2,4501.1,0.43391679]
[1758055605394,3.703,4501.2,4501.1,0.93141679]
[1758055605704,1.709,4501.4,4501.3,3.01358043]
[1758055605903,3.705,4501.4,4501.3,4.27449623]
[1758055606216,3.705,4501.4,4501.3,4.38489623]
[1758055606419,0.002,4501.4,4501.3,4.38489623]
[1758055607513,0.002,4501.4,4501.3,4.36268043]
[1758055608098,0.002,4501.4,4501.3,4.38489623]
[1758055608916,0.002,4501.4,4501.3,8.06568043]
[1758055610410,0.002,4501.4,4501.3,9.06568043]
[1758055613111,0.002,4501.4,4501.3,8.12828043]
[1758055613511,0.002,4501.4,4501.3,8.62578043]
[1758055613710,0.002,4501.4,4501.3,9.06568043]
[1758055618917,0.002,4501.4,4501.3,8.62578043]
[1758055619368,0.002,4501.4,4501.3,8.12828043]
[1758055620684,1.1838,4501.4,4501.3,1.1104]
[1758055620884,1.1838,4501.4,4501.3,1.9024]
[1758055621346,1.1838,4501.4,4501.3,1.1104]
[1758055624774,4.8848,4501.4,4501.3,1.1104]
[1758055626988,4.4798,4501.4,4501.3,0.1104]
[1758055627591,4.8848,4501.4,4501.3,0.1104]
[1758055627851,2.22162978,4501.2,4501.1,0.001]
[1758055628091,2.62658927,4501.3,4501.1,0.1114]
[1758055628279,0.2875,4501.2,4501.1,0.1114]
[1758055628483,0.7768,4501.2,4501.1,0.1114]
[1758055629456,0.2875,4501.2,4501.1,0.1114]
[1758055632675,2.50912978,4501.2,4501.1,0.1114]
[1758055633007,3.40342978,4501.2,4501.1,0.1114]
[1758055633207,1.1818,4501.2,4501.1,0.1114]
[1758055633368,2.99842978,4501.2,4501.1,0.1114]
[1758055634196,2.50912978,4501.2,4501.1,0.1114]
[1758055634403,0.2875,4501.2,4501.1,0.1114]
[1758055634616,3.9875,4501.2,4501.1,0.1114]
[1758055640781,4.4768,4501.2,4501.1,0.1114]
[1758055641125,3.7,4501.2,4501.1,0.1114]
[1758055644453,0.002,4501.4,4501.1,0.4249]
[1758055644637,0.002,4501.4,4501.3,3.01358043]
[1758055644925,0.002,4501.4,4501.3,3.12398043]
[1758055645108,0.002,4501.4,4501.3,4.36678043]
[1758055646704,0.002,4501.4,4501.3,8.06678043]
[1758055647386,0.002,4501.4,4501.3,9.06678043]
[1758055656843,0.002,4501.4,4501.3,4.12398043]
[1758055657059,0.002,4501.4,4501.3,7.82398043]
[1758055658461,0.002,4501.4,4501.3,9.06678043]
[1758055658968,0.002,4501.4,4501.3,8.60998043]
[1758055660648,0.002,4501.4,4501.3,9.06678043]
[1758055671072,0.002,4501.4,4501.3,9.06778043]
[1758055672053,0.002,4501.4,4501.3,8.61098043]
[1758055672256,0.002,4501.4,4501.3,8.13638043]
[1758055672467,0.2447,4501.4,4501.3,4.12498043]
[1758055672790,0.2447,4501.4,4501.3,7.82398043]
[1758055673856,0.002,4501.4,4501.3,7.82398043]
[1758055674478,0.2468,4501.4,4501.3,4.12498043]
[1758055674676,0.2468,4501.4,4501.3,7.82398043]
[1758055674891,0.7462,4501.4,4501.3,7.82398043]
[1758055676593,1.19,4501.4,4501.3,4.12498043]
[1758055676793,1.19,4501.4,4501.3,7.82398043]
[1758055679295,1.19,4501.4,4501.3,5.6024]
[1758055679497,1.19,4501.4,4501.3,4.12498043]